bitfinex/quotes_ETHUSD_20260216
["timestamp","ask_amount","ask_price","bid_price","bid_amount"]
[1771257488509,0.001,1958.7,1958.2,1.27667636]
[1771257489008,0.002,1958.7,1958.3,1.12532959]
[1771257489212,0.001,1958.7,1958.4,1.27655228]
[1771257489541,2.30298052,1959.3,1958.4,2.40188187]
[1771257489693,2.30298052,1959.3,1958.4,1.27655228]
[1771257490307,1.47046735,1959.2,1958.2,5.1065659]
[1771257490808,0.001,1959.1,1958.2,5.1065659]
[1771257491016,0.001,1959.1,1958.3,1.11843987]
[1771257491446,0.001,1959.1,1958.4,1.27655228]
[1771257491597,2.30298052,1959.3,1958.5,2.13643987]
[1771257491598,0.001,1959.0,1958.5,2.13643987]
[1771257491914,1.80688216,1959.3,1958.5,2.13643987]
[1771257492492,1.80688111,1959.3,1958.5,2.13643987]
[1771257493643,1.80688111,1959.3,1958.5,2.2944469]
[1771257494133,0.001,1959.1,1958.5,2.2944469]
[1771257494828,0.001,1959.1,1958.5,1.2764469]
[1771257495010,0.001,1959.1,1958.5,2.2944469]
[1771257495321,0.001,1959.1,1958.5,1.27648002]
[1771257495631,0.001,1959.1,1958.4,2.29450615]
[1771257498931,0.001,1959.1,1958.4,1.018]
[1771257499122,0.001,1959.1,1958.4,3.39942719]
[1771257500206,0.001,1959.1,1958.2,5.10666167]
[1771257500410,1.4614061,1959.1,1958.3,1.02]
[1771257501143,1.2761613,1959.0,1958.3,1.27656393]
[1771257501307,1.2761613,1959.0,1958.4,1.02]
[1771257502137,1.2761613,1959.0,1958.1,0.0011]
[1771257502138,1.024,1958.9,1958.1,0.0011]
[1771257502341,1.4604061,1958.8,1958.1,0.0011]
[1771257502729,1.4604061,1958.8,1958.0,0.0011]
[1771257502730,1.4604061,1958.8,1957.8,0.0011]
[1771257503039,1.4604061,1958.6,1957.8,0.0011]
[1771257503351,1.4604061,1958.4,1957.8,0.0011]
[1771257503733,1.4604061,1958.4,1957.6,0.0011]
[1771257505621,1.27661747,1958.3,1957.6,0.0011]
[1771257505821,2.73702357,1958.3,1958.1,0.0011]
[1771257506025,2.73702357,1958.3,1957.6,0.0011]
[1771257506810,2.73702357,1958.3,1958.0,0.0011]
[1771257507019,1.27661747,1958.3,1958.0,0.0011]
[1771257509809,1.4604061,1958.3,1957.8,0.0011]
[1771257510930,0.92,1958.7,1957.9,1.06543164]
[1771257511131,0.001,1958.9,1958.1,1.06543164]
[1771257512057,0.001,1958.9,1958.3,1.06219899]
[1771257513861,0.001,1958.9,1958.3,1.015]
[1771257514158,0.001,1958.9,1958.4,1.27655228]
[1771257515858,0.001,1958.9,1958.3,2.29256479]
[1771257516081,0.001,1958.9,1958.0,1.27681307]
[1771257516387,1.27722645,1958.9,1958.1,1.017]
[1771257516655,2.73763255,1958.9,1958.0,1.27681307]
[1771257516845,0.001,1958.9,1958.1,1.04617915]
[1771257518250,0.001,1958.9,1958.2,2.31968695]
[1771257518462,0.001,1958.9,1958.3,2.06000429]
[1771257519666,1.4614061,1958.9,1958.0,0.0011]
[1771257519840,1.4614061,1958.9,1958.0,1.277906]
[1771257520048,1.4614061,1958.9,1958.0,0.0011]
[1771257520254,2.7366977,1958.8,1958.0,0.0011]
[1771257520668,1.4604061,1958.7,1958.0,0.0011]
[1771257520837,1.2762916,1958.8,1958.0,0.0011]
[1771257521340,1.27726922,1958.9,1958.0,0.0011]
[1771257522872,1.27726922,1958.9,1958.0,1.0315436]
[1771257523066,0.001,1958.9,1958.0,1.0315436]
[1771257524170,0.001,1958.9,1958.1,1.94377458]
[1771257524370,0.001,1958.9,1958.2,2.04077458]
[1771257524876,0.001,1958.9,1958.3,2.30039205]
[1771257525565,0.001,1958.9,1958.3,2.29361747]
[1771257530049,0.001,1958.9,1958.4,1.02]
[1771257530959,0.001,1958.8,1958.5,1.2764871]
[1771257531289,0.001,1959.1,1958.5,1.2764871]
[1771257536804,0.001,1959.1,1958.6,1.025]
[1771257538680,0.001,1959.1,1958.7,1.026]
[1771257540691,0.001,1959.1,1958.3,0.97506169]
[1771257540893,0.001,1959.1,1958.4,6.13119377]
[1771257541289,1.36673861,1959.1,1958.4,2.30155228]
[1771257541511,1.36673861,1959.1,1958.5,1.025]
[1771257542282,0.001,1959.1,1958.5,1.99418617]
[1771257542588,0.001,1959.1,1958.6,0.97028617]
[1771257542914,0.001,1959.0,1958.7,1.27635676]
[1771257543522,0.001,1959.0,1958.6,6.07571323]
[1771257543523,0.001,1959.0,1958.6,1.27751008]
[1771257543694,0.001,1959.0,1958.6,2.30351008]
[1771257544611,0.001,1959.0,1958.6,1.27751008]
[1771257544794,0.001,1959.0,1958.6,2.30451008]
[1771257549628,0.001,1959.0,1958.6,1.27751008]
[1771257549816,0.001,1959.0,1958.6,0.0011]
[1771257550018,0.001,1959.0,1958.6,1.27751783]
[1771257550523,1.36673861,1959.0,1958.6,0.0011]
[1771257551830,0.001,1959.0,1958.6,0.0011]
[1771257552593,0.001,1959.5,1958.7,2.21664841]
[1771257552928,0.001,1959.5,1958.8,1.035]
[1771257553727,0.001,1959.5,1958.9,0.93466016]
[1771257554436,2.5998531,1959.5,1958.7,1.27635676]
[1771257554601,2.5998531,1959.5,1959.0,1.2761613]
[1771257555635,1.32399809,1959.4,1958.9,1.036]
[1771257555820,1.32399809,1959.4,1958.7,1.0371]
[1771257556009,1.32399809,1959.4,1958.7,2.31344386]
[1771257556211,0.001,1959.4,1958.7,3.24216676]
[1771257557207,0.001,1959.4,1958.8,0.92591381]
[1771257559638,0.001,1959.4,1958.9,2.19654265]
[1771257560938,1.32399809,1959.4,1958.8,1.27624364]
[1771257561113,1.32399809,1959.4,1958.9,1.039]
[1771257561314,0.001,1959.4,1958.9,1.039]
[1771257561741,0.001,1959.4,1958.9,2.31517166]
[1771257564022,0.001,1959.4,1958.9,1.27617166]
[1771257564216,0.001,1959.4,1958.9,2.31717166]
[1771257564435,0.001,1959.4,1958.9,2.31817166]
[1771257565318,1.32399809,1959.4,1958.9,2.31817166]
[1771257565517,1.32399809,1959.4,1958.9,1.042]
[1771257566422,1.2759659,1959.3,1958.9,1.042]
[1771257566620,1.2759659,1959.3,1958.7,1.0441]
[1771257566621,1.32299809,1959.2,1958.7,1.0441]
[1771257566821,1.32299809,1959.2,1958.7,2.32044993]
[1771257567246,1.32299809,1959.2,1958.7,1.0441]
[1771257567542,1.32299809,1959.2,1958.9,0.0011]
[1771257568718,1.32299809,1959.1,1958.9,0.0011]
[1771257570051,1.27604724,1959.2,1958.9,0.0011]
[1771257571131,1.32399809,1959.3,1958.9,0.0011]
[1771257571332,2.59996924,1959.3,1958.9,0.0011]
[1771257574052,1.32299809,1959.2,1958.9,0.0011]
[1771257575356,1.27697115,1959.3,1958.9,0.0011]
[1771257576556,2.59996924,1959.3,1958.9,0.0011]
[1771257576775,1.27697115,1959.3,1958.8,0.0011]
[1771257576932,1.32299809,1959.1,1958.5,0.0011]
[1771257577256,1.32299809,1959.1,1958.5,1.27757613]
[1771257577555,2.59910164,1959.1,1958.5,0.0011]
[1771257577761,2.30006829,1959.2,1958.5,0.0011]
[1771257579547,3.62306638,1959.2,1958.5,1.2775871]
[1771257581077,2.34699809,1959.2,1958.7,0.0011]
[1771257581371,2.30103341,1959.2,1958.7,0.0011]
[1771257583275,0.001,1959.2,1958.7,0.8577574]
[1771257583857,0.001,1959.2,1958.7,0.0011]
[1771257584571,1.28739659,1959.2,1958.7,0.0011]
[1771257587086,1.27609616,1959.1,1958.7,0.0011]
[1771257587268,1.28639659,1959.0,1958.7,0.0011]
[1771257589183,2.56261396,1959.0,1958.7,0.0011]
[1771257589592,1.27621737,1959.0,1958.7,0.0011]
[1771257591392,2.50729089,1959.0,1958.7,0.0011]
[1771257592892,1.27621737,1959.0,1958.7,0.0011]
[1771257593269,2.50729089,1959.0,1958.7,0.0011]
[1771257595695,1.23107352,1959.0,1958.7,0.0011]
[1771257597901,2.50729486,1959.0,1958.7,0.0011]
[1771257598209,1.23107352,1958.9,1958.5,0.0011]
[1771257599369,1.27622134,1959.0,1958.5,0.0011]
[1771257599890,2.30509665,1959.1,1958.6,1.27642193]
[1771257600502,5.10515772,1959.2,1958.6,1.27642193]
[1771257600503,0.001,1959.2,1958.6,1.27642193]
[1771257600707,0.001,1959.2,1958.7,0.81279874]
[1771257601565,0.001,1959.2,1958.6,1.27642193]
[1771257602072,0.001,1959.2,1958.6,0.80781119]
[1771257602802,0.001,1959.2,1958.7,1.038]
[1771257603698,1.23207352,1959.2,1958.5,5.10703055]
[1771257604015,1.23107352,1959.1,1958.5,0.0011]
[1771257604309,1.23107352,1959.0,1958.5,0.0011]
[1771257604721,0.001,1959.1,1958.5,0.0011]
[1771257605209,1.23207352,1959.1,1958.5,0.0011]
[1771257605883,1.23207352,1959.1,1958.3,0.0011]
[1771257606084,2.50723482,1959.0,1958.3,0.0011]
[1771257606287,1.23107352,1959.0,1958.3,0.0011]
[1771257606487,0.001,1959.1,1958.3,0.7990176]
[1771257606725,2.50817457,1959.1,1958.3,0.0011]
[1771257609487,2.50817457,1959.1,1958.3,1.0371]
[1771257609882,0.001,1959.1,1958.4,0.78814697]
[1771257610314,0.001,1959.1,1958.6,0.78814697]
[1771257611327,0.001,1959.1,1958.5,1.2764871]
[1771257611509,1.23207352,1959.1,1958.3,2.31466775]
[1771257612433,1.2761613,1959.0,1958.3,2.31466775]
[1771257613311,1.27711614,1959.1,1958.3,3.09548328]
[1771257614609,0.001,1959.1,1958.3,3.09548328]
[1771257614931,0.001,1959.1,1958.5,7.51806376]
[1771257615434,0.001,1959.1,1958.4,0.77581253]
[1771257615641,0.001,1959.1,1958.3,9.83273151]
[1771257615837,0.001,1959.1,1958.4,0.0011]
[1771257616050,0.001,1959.0,1958.4,0.0011]
[1771257616353,0.001,1959.0,1958.5,8.2914566]
[1771257616636,0.001,1959.0,1958.4,0.0011]
[1771257616829,0.001,1959.0,1958.4,1.0391]
[1771257617421,1.28861327,1959.0,1958.4,1.0391]
[1771257617722,1.28861327,1959.0,1958.4,0.0011]
[1771257617723,1.28761327,1958.9,1958.4,0.0011]
[1771257618038,0.001,1959.2,1958.8,0.76857299]
[1771257618222,0.001,1959.2,1958.9,8.55706376]
[1771257618424,0.001,1959.4,1958.9,8.55706376]
[1771257618626,0.001,1959.4,1959.0,1.2761613]
[1771257619224,8.80667703,1959.4,1958.5,1.2764871]
[1771257619539,8.80667703,1959.4,1958.4,1.27760211]
[1771257619540,1.28761327,1959.1,1958.4,1.27760211]
[1771257619728,9.84567703,1959.4,1958.4,8.79566587]
[1771257620038,1.28761327,1959.3,1958.4,1.27760211]
[1771257620222,1.28761327,1958.9,1958.4,0.0011]
[1771257620725,2.56390487,1958.8,1958.4,0.0011]
[1771257622411,2.31627428,1958.9,1958.4,0.0011]
[1771257622616,1.27627428,1958.9,1958.4,0.0011]
[1771257622818,1.043,1959.0,1958.4,0.0011]
[1771257623017,2.31916143,1959.0,1958.4,0.0011]
[1771257624034,0.92,1959.3,1958.4,0.0011]
[1771257624237,1.27607384,1959.2,1958.4,7.51916376]
[1771257624522,4.52762943,1959.3,1958.4,7.51916376]
[1771257625044,4.52762943,1959.3,1958.5,1.2764871]
[1771257625222,4.52762943,1959.3,1958.4,1.27760449]
[1771257625621,0.001,1959.4,1958.7,0.7520254]
[1771257625820,0.001,1959.6,1959.2,7.51806376]
[1771257626042,0.001,1959.6,1959.2,8.55806376]
[1771257626234,0.001,1959.6,1959.2,1.04]
[1771257626749,0.001,1959.7,1959.4,7.51806376]
[1771257626952,0.001,1959.7,1959.2,9.30772461]
[1771257627134,0.001,1959.7,1959.3,1.2759659]
[1771257627932,2.56277757,1960.6,1959.5,8.26310329]
[1771257628125,7.51806376,1960.1,1959.2,1.2759879]
[1771257628327,1.28761327,1960.0,1959.2,1.2759879]
[1771257628644,7.51806376,1959.9,1959.1,2.31904566]
[1771257628839,1.28761327,1960.0,1959.1,2.31904566]
[1771257629041,1.27583567,1959.5,1958.9,2.31918064]
[1771257629243,1.27554627,1960.0,1958.9,9.8372444]
[1771257629445,1.043,1960.0,1959.1,7.51806376]
[1771257629745,1.043,1960.0,1959.5,7.51806376]
[1771257629936,1.043,1960.0,1959.3,1.043]
[1771257631161,0.92,1960.3,1959.5,1.27583567]
[1771257632347,2.19531502,1960.3,1959.5,1.27583567]
[1771257632857,1.28761327,1960.2,1959.4,1.043]
[1771257633078,1.28761327,1960.0,1959.0,1.043]
[1771257633283,1.28761327,1959.9,1959.0,1.043]
[1771257633885,1.28761327,1959.9,1958.9,5.1047175]
[1771257634081,1.28761327,1959.9,1958.8,1.043]
[1771257634954,1.28761327,1959.9,1958.5,1.27756995]
[1771257635257,1.28761327,1959.9,1958.5,0.0011]
[1771257635258,1.28761327,1959.7,1958.5,0.0011]
[1771257635561,1.042,1959.6,1958.5,0.72987544]
[1771257635730,0.18685624,1960.7,1958.5,0.72987544]
[1771257636068,1.28761327,1961.2,1960.1,0.72645813]
[1771257636236,2.56217541,1961.5,1960.3,6.294796]
[1771257636435,2.56217541,1961.5,1960.4,0.72645813]
[1771257636951,1.28761327,1961.4,1960.5,1.042]
[1771257637149,1.27466476,1961.3,1960.6,1.27511986]
[1771257637554,1.27466476,1961.3,1960.1,1.99953083]
[1771257637555,1.28761327,1961.2,1960.1,1.99953083]
[1771257637734,1.28761327,1961.2,1960.3,1.042]
[1771257639272,1.27479475,1961.1,1960.4,1.27524994]
[1771257639775,1.27478069,1961.2,1960.5,0.0011]
[1771257643078,2.31678069,1961.2,1960.5,0.0011]
[1771257643276,3.60439396,1961.2,1960.5,0.0011]
[1771257646160,1.32471707,1961.1,1960.5,0.0011]
[1771257646487,1.32471707,1961.1,1960.2,0.0011]
[1771257647382,1.32471707,1960.9,1960.2,0.0011]
[1771257647589,2.36871707,1960.8,1960.2,0.0011]
[1771257649090,1.29551414,1960.7,1960.2,0.0011]
[1771257649460,1.27511986,1960.6,1960.2,0.0011]
[1771257650560,1.29551414,1960.5,1960.2,0.0011]
[1771257651390,1.046,1960.4,1960.2,0.0011]
[1771257651770,1.275315,1960.3,1960.2,0.0011]
[1771257651970,1.275315,1960.3,1959.5,1.27583567]
[1771257652172,1.275315,1960.3,1959.6,0.82516485]
[1771257652471,1.275315,1960.3,1960.0,0.0011]
[1771257660910,5.10030648,1960.7,1960.0,0.0011]
[1771257661109,1.2749898,1960.8,1960.0,0.80332744]
[1771257661412,1.27472975,1961.3,1960.2,0.80222744]
[1771257661583,1.061,1961.1,1960.3,1.275315]
[1771257661906,1.29551414,1961.0,1960.1,2.07761913]
[1771257662213,1.27472975,1961.3,1960.1,1.27544148]
[1771257662515,1.27472975,1961.3,1960.2,0.79970225]
[1771257663419,1.27472975,1961.3,1960.4,0.7971828]
[1771257663620,1.27472975,1961.3,1960.5,2.0723677]
[1771257663979,1.981,1961.4,1960.6,0.79466697]
[1771257664181,3.25562439,1961.4,1960.6,0.79466697]
[1771257664401,1.29551414,1961.3,1960.3,0.79466697]
[1771257664584,1.29551414,1961.3,1960.2,1.27537605]
[1771257664796,1.29551414,1961.3,1960.2,2.07004302]
[1771257664998,1.29551414,1961.3,1960.3,0.0011]
[1771257665198,0.001,1961.2,1960.3,0.0011]
[1771257665381,1.061,1961.1,1960.3,0.0011]
[1771257665701,1.27485976,1961.0,1960.3,0.0011]
[1771257666205,1.27573356,1961.2,1960.3,0.79076387]
[1771257667103,0.001,1961.2,1960.3,0.79076387]
[1771257667705,0.001,1961.2,1960.6,1.27511986]
[1771257667913,0.001,1961.2,1960.7,0.78716699]
[1771257670188,0.001,1961.2,1960.8,2.0546902]
[1771257670408,0.001,1961.2,1960.9,0.7797004]
[1771257670612,0.001,1961.4,1960.9,0.7797004]
[1771257672898,0.001,1961.4,1961.0,1.27485976]
[1771257673392,0.001,1961.4,1961.0,2.30985976]
[1771257673806,0.001,1961.4,1961.0,1.035]
[1771257674206,0.001,1961.4,1961.1,0.75917429]
[1771257675011,2.33925,1962.0,1961.2,2.0262367]
[1771257676923,0.001,1961.3,1961.2,2.0262367]
[1771257677105,2.33925,1962.0,1961.2,2.0262367]
[1771257677810,1.28025,1962.0,1961.3,0.73639469]
[1771257678134,1.28023169,1962.0,1961.3,0.73639469]
[1771257678713,1.28023169,1962.0,1961.2,1.27472975]
[1771257681225,0.006,1962.0,1961.3,0.70691434]
[1771257681933,1.1932987,1961.9,1961.0,0.70691434]
[1771257682509,1.1932987,1961.9,1960.9,1.27489716]
[1771257682510,1.1932987,1961.7,1960.9,1.27489716]
[1771257682833,1.1932987,1961.7,1960.9,2.31089716]
[1771257683021,1.1932987,1961.7,1960.8,2.31093263]
[1771257683802,2.2502987,1961.7,1960.8,2.31093263]
[1771257684102,1.1932987,1961.6,1960.8,2.31093263]
[1771257684506,1.1932987,1961.4,1960.4,1.27524994]
[1771257684726,1.1932987,1961.4,1960.4,2.31124994]
[1771257685325,1.1932987,1961.4,1960.5,0.67836803]
[1771257685852,0.006,1962.0,1961.4,0.67836803]
[1771257686019,0.006,1962.0,1961.5,1.036]
[1771257686642,0.006,1962.0,1961.5,2.3105019]
[1771257687216,0.006,1962.0,1961.1,0.66443808]
[1771257687420,0.006,1962.0,1961.2,1.037]
[1771257688036,0.006,1962.0,1961.2,1.6945603]
[1771257689366,0.006,1962.0,1961.2,6.79321935]
[1771257689554,0.006,1962.0,1961.2,2.31172975]
[1771257689736,0.001,1961.8,1961.2,2.31172975]
[1771257690243,0.001,1961.8,1961.0,2.9625605]
[1771257691442,0.001,1961.8,1961.2,0.63726769]
[1771257693029,2.46426812,1962.1,1961.0,2.93583909]
[1771257693233,1.1932987,1962.0,1961.0,2.93583909]
[1771257693522,1.27427493,1961.9,1961.0,2.93583909]
[1771257693936,2.46757363,1961.9,1961.0,2.93683909]
[1771257694141,1.1932987,1961.8,1961.0,2.31282205]
[1771257694346,1.1932987,1961.5,1960.6,0.0011]
[1771257695539,1.27459977,1961.4,1960.6,0.0011]
[1771257695738,2.32858743,1961.5,1960.6,0.61237251]
[1771257695938,14.20302229,1962.0,1960.6,0.61237251]
[1771257695939,1.1932987,1961.9,1960.6,0.61237251]
[1771257696141,1.054,1962.0,1960.9,0.6048319]
[1771257696525,1.054,1962.0,1961.1,0.6048319]
[1771257696822,1.054,1962.0,1961.1,1.6418319]
[1771257697018,0.003,1962.2,1961.2,0.59844051]
[1771257697222,1.27710266,1962.2,1961.2,0.59844051]
[1771257697755,1.27710266,1962.2,1961.3,1.27466476]
[1771257699957,1.1932987,1962.1,1961.0,1.27485976]
[1771257701452,1.1932987,1962.1,1961.2,0.0011]
[1771257701652,0.001,1962.0,1961.2,0.0011]
[1771257702028,1.1932987,1961.9,1961.0,0.0011]
[1771257702224,1.1932987,1961.9,1960.6,0.0011]
[1771257702531,1.1932987,1961.9,1960.6,1.27621612]
[1771257703934,1.27433989,1961.8,1960.6,0.0011]
[1771257704139,1.12339419,1961.6,1960.6,0.0011]
[1771257704539,1.12339419,1961.6,1960.3,1.276415]
[1771257704540,1.12339419,1961.4,1960.3,0.0011]
[1771257705746,1.054,1961.3,1960.3,0.0011]
[1771257706249,2.39812394,1961.2,1960.3,0.0011]
[1771257707156,1.12339419,1961.1,1960.3,0.0011]
[1771257708057,0.1024,1961.0,1960.0,0.0011]
[1771257708255,1.1705336,1960.9,1959.1,1.035]
[1771257708445,1.1705336,1960.7,1959.1,1.035]
[1771257708836,1.1705336,1960.7,1959.1,1.55375465]
[1771257709028,1.1705336,1960.5,1958.8,0.51875465]
[1771257709228,1.1705336,1959.8,1958.5,0.0011]
[1771257709458,1.1705336,1959.6,1958.5,1.27758312]
[1771257709665,1.973,1959.7,1958.6,10.062872]
[1771257709865,1.1705336,1959.9,1958.6,10.062872]
[1771257709866,1.1705336,1959.9,1958.6,8.207396]
[1771257710157,1.27577056,1959.6,1958.7,1.27635676]
[1771257710575,2.19461608,1959.9,1958.8,14.18834275]
[1771257710760,0.919,1959.9,1958.9,0.51316775]
[1771257711480,0.919,1959.9,1959.1,0.5075281]
[1771257711777,0.919,1959.9,1959.3,0.5075281]
[1771257712174,0.919,1959.9,1959.3,1.2759659]
[1771257712836,1.053,1960.2,1959.3,1.2759659]
[1771257713234,2.32839863,1960.2,1959.3,1.2759659]
[1771257713658,1.053,1960.2,1959.4,0.0011]
[1771257713865,2.32838535,1960.2,1959.4,0.0011]
[1771257714237,1.053,1960.2,1959.4,0.0011]
[1771257714437,2.32838244,1960.2,1959.4,0.0011]
[1771257715278,1.053,1960.2,1959.4,0.0011]
[1771257715479,1.27523485,1960.5,1959.4,0.48649935]
[1771257716091,3.49857056,1960.8,1959.6,0.47996485]
[1771257716264,1.053,1960.8,1959.8,0.47996485]
[1771257716461,3.49852603,1960.8,1959.7,2.31070546]
[1771257717460,2.32799243,1960.8,1959.8,0.474583]
[1771257718377,5.09830776,1961.5,1959.8,0.474583]
[1771257718378,1.1705336,1961.4,1960.0,0.46923495]
[1771257718614,2.2245336,1961.4,1960.2,0.46923495]
[1771257718761,2.2245336,1961.4,1960.1,1.037]
[1771257718762,1.054,1961.4,1960.4,0.46923495]
[1771257719103,1.27451511,1961.6,1960.4,0.46923495]
[1771257719387,2.32851511,1961.6,1960.4,0.46923495]
[1771257720596,1.054,1961.6,1960.7,15.74224809]
[1771257720817,1.054,1961.6,1960.8,2.149672]
[1771257721188,1.054,1961.6,1960.8,2.60310678]
[1771257721388,1.054,1961.6,1960.5,1.72861968]
[1771257721389,2.32849127,1961.6,1960.5,1.72861968]
[1771257721690,1.1705336,1961.5,1960.5,2.3111849]
[1771257722587,1.27459977,1961.4,1960.5,2.3111849]
[1771257723319,1.27459977,1961.4,1960.4,5.1007396]
[1771257723320,1.1705336,1961.3,1960.0,3.3231932]
[1771257723639,1.1705336,1961.1,1959.8,1.27564037]
[1771257724494,1.27485976,1961.0,1959.8,1.27564037]
[1771257724695,1.27485976,1961.0,1959.8,1.71362206]
[1771257725620,1.27485976,1961.0,1959.8,1.27564037]
[1771257725822,1.1715336,1961.3,1960.1,3.956256]
[1771257726023,1.1715336,1961.3,1960.0,0.43291104]
[1771257726326,1.1715336,1961.3,1960.2,0.42787084]
[1771257726327,0.001,1961.3,1960.2,0.42787084]
[1771257726725,0.001,1961.3,1960.5,0.42787084]
[1771257727027,0.001,1961.3,1960.6,1.037]
[1771257727192,0.001,1961.3,1960.7,14.07836]
[1771257727517,1.27522591,1962.0,1960.9,15.56297534]
[1771257727716,1.055,1962.0,1961.1,0.42286534]
[1771257728019,1.055,1962.0,1961.2,1.038]
[1771257728695,2.32922523,1962.0,1961.3,1.27466476]
[1771257730596,1.055,1962.0,1961.3,1.27466476]
[1771257730816,2.32921945,1962.0,1961.2,1.27470102]
[1771257731635,1.1705336,1961.9,1960.5,5.10071383]
[1771257731797,1.1705336,1961.9,1960.6,1.038]
[1771257732731,1.1705336,1961.7,1960.7,1.27505482]
[1771257732932,1.1705336,1961.7,1960.4,1.038]
[1771257733807,1.27433989,1961.8,1960.5,0.38784134]
[1771257734119,1.0834047,1961.7,1960.4,1.038]
[1771257734324,1.0834047,1961.7,1960.4,1.037]
[1771257734527,1.0834047,1961.5,1960.2,5.10148161]
[1771257734698,1.27466476,1961.3,1960.2,1.27538006]
[1771257735030,0.3148,1961.4,1960.6,3.50903]
[1771257735234,0.3148,1961.4,1960.6,1.037]
[1771257736066,1.58940561,1961.4,1960.6,1.037]
[1771257736535,1.58940561,1961.4,1960.5,0.37856344]
[1771257736743,0.3148,1961.4,1960.6,1.27511986]
[1771257737136,0.001,1962.0,1960.9,28.828986]
[1771257737334,0.001,1962.0,1961.0,1.037]
[1771257737537,0.001,1961.4,1961.1,0.38866399]
[1771257737732,0.001,1962.0,1961.1,0.38866399]
[1771257738735,0.001,1962.0,1961.3,1.27466476]
[1771257741139,0.001,1962.0,1961.1,5.09865905]
[1771257741466,0.001,1962.0,1961.2,12.41088396]
[1771257741766,0.001,1962.0,1961.2,0.36651196]
[1771257743157,0.001,1962.0,1961.3,1.27466476]
[1771257745040,0.001,1962.0,1961.2,5.44365988]
[1771257745540,0.001,1962.0,1961.3,0.34500083]
[1771257745741,0.001,1962.0,1961.4,1.039]
[1771257747238,0.001,1962.0,1961.0,7.678038]
[1771257747437,0.001,1962.0,1960.9,1.039]
[1771257747438,0.001,1962.0,1961.1,0.33448768]
[1771257748565,0.001,1962.0,1960.9,1.039]
[1771257748764,1.0844047,1962.0,1960.9,1.039]
[1771257749138,1.0834047,1961.8,1960.7,5.10003432]
[1771257749333,1.0834047,1961.8,1960.7,6.13903432]
[1771257749571,1.0834047,1961.8,1960.8,13.485105]
[1771257749770,1.2752472,1962.0,1961.3,0.0011]
[1771257749940,0.001,1961.9,1961.3,0.0011]
[1771257753173,0.001,1961.9,1961.4,21.66300333]
[1771257753482,0.003,1962.2,1961.6,20.12339933]
[1771257753658,0.003,1962.2,1961.8,6.48877]
[1771257753849,1.27367267,1962.9,1961.9,1.041]
[1771257754046,0.003,1963.1,1962.3,14.809674]
[1771257754270,0.003,1963.1,1962.4,1.041]
[1771257754682,1.27649994,1963.1,1962.2,1.041]
[1771257755342,1.0864047,1963.1,1962.0,2.31520998]
[1771257755564,0.003,1963.1,1962.1,13.689724]
[1771257755884,0.003,1963.1,1962.2,13.80118856]
[1771257756055,0.003,1963.1,1962.3,0.29303611]
[1771257756259,2.35627789,1964.1,1962.7,10.04587076]
[1771257756559,2.35627789,1964.1,1962.8,1.042]
[1771257756560,1.0834047,1964.0,1962.8,1.042]
[1771257756774,1.0834047,1963.8,1962.8,1.042]
[1771257757081,0.75178786,1963.8,1962.9,0.4748067]
[1771257757382,1.0834047,1965.4,1963.7,9.75283465]
[1771257757682,1.0834047,1965.1,1963.8,0.4748067]
[1771257757846,1.0834047,1965.1,1963.9,0.4748067]
[1771257758047,1.0834047,1965.1,1964.0,0.4748067]
[1771257758352,1.0834047,1964.8,1964.1,0.4748067]
[1771257758554,1.0834047,1964.6,1963.2,1.27343113]
[1771257759575,1.0834047,1964.4,1962.9,1.27362575]
[1771257759750,1.0834047,1964.4,1963.0,1.041]
[1771257762265,1.0834047,1964.2,1963.0,2.31453992]
[1771257762465,1.0834047,1964.0,1963.0,2.31453992]
[1771257763165,1.044,1964.1,1963.0,2.31453992]
[1771257763390,5.09087206,1964.6,1963.0,2.31453992]
[1771257763391,1.0834047,1964.9,1963.2,0.05547599]
[1771257763568,0.918,1965.1,1963.6,0.05547599]
[1771257763773,0.001,1964.3,1963.8,0.05547599]
[1771257764082,0.001,1964.3,1963.4,4.403304]
[1771257764277,0.001,1964.3,1963.6,12.889405]
[1771257764472,0.001,1964.3,1963.7,0.04815732]
[1771257764672,1.09141446,1964.8,1963.5,1.27323656]
[1771257765893,2.13641446,1964.8,1963.5,1.31664683]
[1771257766466,1.27245889,1964.7,1963.5,1.31664683]
[1771257767165,1.044,1965.1,1963.7,0.03404268]
[1771257767166,2.36367909,1965.0,1963.7,0.03404268]
[1771257767372,2.36367909,1965.0,1963.8,1.041]
[1771257768075,1.27223761,1965.1,1963.9,0.02702393]
[1771257768464,5.08869505,1965.2,1964.0,1.27291242]
[1771257768669,1.07659805,1965.1,1964.0,1.27291242]
[1771257769894,1.07659805,1965.1,1963.9,1.2729252]
[1771257770497,1.27226463,1965.0,1964.0,0.46996868]
[1771257770704,1.27226463,1965.0,1964.1,0.46996868]
[1771257770919,1.27226463,1965.0,1964.2,0.46996868]
[1771257771084,1.27223226,1965.1,1964.0,0.01334283]
[1771257771286,1.27223226,1965.1,1964.1,0.48317652]
[1771257771615,1.07659805,1965.0,1963.8,1.27298977]
[1771257771793,1.07659805,1965.0,1963.9,0.46987786]
[1771257772019,1.07659805,1965.0,1963.6,1.27312419]
[1771257772205,1.07659805,1964.6,1963.3,1.27336627]
[1771257772504,1.27265322,1964.4,1963.5,1.27323656]
[1771257772718,1.27265322,1964.4,1963.6,0.4700401]
[1771257772888,2.34925127,1964.4,1963.2,1.27343113]
[1771257773193,2.34925127,1964.4,1963.3,0.47005396]
[1771257773410,1.07659805,1964.3,1963.4,0.47005396]
[1771257773607,1.07659805,1964.3,1963.1,2.1904704]
[1771257773793,1.07659805,1964.3,1963.2,0.47026879]
[1771257774123,1.07659805,1964.3,1963.1,0.917]
[1771257774283,1.07659805,1964.2,1963.1,0.917]
[1771257774605,2.34944566,1964.1,1963.1,0.917]
[1771257774809,1.045,1964.0,1963.1,0.917]
[1771257775222,2.12159805,1964.0,1963.1,0.917]
[1771257775408,1.07659805,1963.9,1963.1,0.917]
[1771257775610,0.917,1963.9,1963.0,0.0011]